[Event "28th North American Open"]
[Site "Las Vegas"]
[Date "2018.12.30"]
[Round "9"]
[White "Zhu, Jack"]
[Black "Mulyar, Michael"]
[Result "1-0"]
[ECO "C47"]
[WhiteElo "2364"]
[BlackElo "2398"]
[PlyCount "171"]
[EventDate "2018.12.??"]
[EventType "swiss"]
[EventRounds "9"]
[EventCountry "USA"]
[TimeControl "6600+10"]
[WhiteClock "0:17:17"]
[BlackClock "0:15:56"]

1. e4 {[%emt 0:19:40]} e5 {[%emt 0:19:58]} 2. Nf3 {[%emt 0:00:00]} Nc6 {
[%emt 0:00:00]} 3. Nc3 {[%emt 0:00:00]} Nf6 {[%emt 0:00:00]} 4. g3 {[%emt 0:00:
00]} Bc5 {[%emt 0:00:00]} 5. Bg2 {[%emt 0:00:00]} d6 {[%emt 0:00:00]} 6. O-O {
[%emt 0:00:00]} a6 {[%emt 0:00:00]} 7. d3 {[%emt 0:00:00]} h6 {[%emt 0:00:00]}
8. Be3 {[%emt 0:04:51]} Bg4 {[%emt 0:00:11]} 9. h3 {[%emt 0:00:00]} Bxf3 {
[%emt 0:00:07]} 10. Qxf3 {[%emt 0:00:00]} O-O {[%emt 0:00:00]} 11. Qd1 {
[%emt 0:06:02]} Bxe3 {[%emt 0:03:00]} 12. fxe3 {[%emt 0:00:00]} Ne7 {[%emt 0:
01:23]} 13. Qe2 {[%emt 0:11:08]} Ng6 {[%emt 0:00:00]} 14. Rf5 {[%emt 0:00:09]}
c6 {[%emt 0:00:34]} 15. Raf1 {[%emt 0:00:00]} Nd7 {[%emt 0:01:59]} 16. Qh5 {
[%emt 0:01:01]} Qe8 {[%emt 0:02:37]} 17. h4 {[%emt 0:03:17]} Qe6 {[%emt 0:01:
12]} 18. Kh2 {[%emt 0:01:19]} Ne7 {[%emt 0:00:27]} 19. R5f2 {[%emt 0:00:00]}
Qg6 {[%emt 0:00:20]} 20. Qxg6 {[%emt 0:03:34]} Nxg6 {[%emt 0:00:11]} 21. Kh3 {
[%emt 0:00:00]} f6 {[%emt 0:04:36]} 22. g4 {[%emt 0:00:52]} Ne7 {[%emt 0:02:38]
} 23. h5 {[%emt 0:01:49]} Nc5 {[%emt 0:00:35]} 24. Ne2 {[%emt 0:00:04]} Ne6 {
[%emt 0:00:03]} 25. Ng3 {[%emt 0:00:00]} Ng5+ {[%emt 0:00:00]} 26. Kh2 {
[%emt 0:00:00]} Rfd8 {[%emt 0:00:20]} 27. d4 {[%emt 0:00:07]} Kf8 {[%emt 0:00:
14]} 28. Rd1 {[%emt 0:00:00]} Ke8 {[%emt 0:00:00]} 29. Bf1 {[%emt 0:00:00]} Rd7
{[%emt 0:00:05]} 30. Kg2 {[%emt 0:00:00]} Rad8 {[%emt 0:01:02]} 31. Rfd2 {
[%emt 0:00:03]} Nf7 {[%emt 0:01:41]} 32. Kf2 {[%emt 0:00:16]} Ng5 {[%emt 0:00:
00]} 33. c3 {[%emt 0:00:00]} Nf7 {[%emt 0:00:27]} 34. a4 {[%emt 0:00:05]} Ng5 {
[%emt 0:00:00]} 35. b4 {[%emt 0:00:10]} Nf7 {[%emt 0:00:44]} 36. Bg2 {[%emt 0:
02:08]} Ng5 {[%emt 0:00:00]} 37. Rb2 {[%emt 0:00:00]} Ra8 {[%emt 0:00:00]} 38.
Ke2 {[%emt 0:00:00]} a5 {[%emt 0:00:09]} 39. Ra1 {[%emt 0:00:00]} axb4 {
[%emt 0:02:21]} 40. cxb4 {[%emt 0:02:19]} b6 {[%emt 0:01:40]} 41. a5 {[%emt 0:
00:10]} Rda7 {[%emt 0:00:00]} 42. Rba2 {[%emt 0:00:00]} Kd7 {[%emt 0:00:05]}
43. Kd3 {[%emt 0:00:00]} Kc7 {[%emt 0:04:21]} 44. Ne2 {[%emt 0:00:18]} bxa5 {
[%emt 0:01:49]} 45. bxa5 {[%emt 0:00:00]} Rb8 {[%emt 0:00:04]} 46. Nc3 {
[%emt 0:00:00]} Ne6 {[%emt 0:00:43]} 47. Bf1 {[%emt 0:00:00]} exd4 {[%emt 0:08:
38]} 48. exd4 {[%emt 0:00:00]} c5 {[%emt 0:01:00]} 49. d5 {[%emt 0:00:14]} Nd4
{[%emt 0:00:00]} 50. Rb1 {[%emt 0:00:00]} Rba8 {[%emt 0:02:22]} 51. Nb5+ {
[%emt 0:00:44]} Nxb5 {[%emt 0:00:00]} 52. Rxb5 {[%emt 0:00:00]} Nc8 {[%emt 0:
00:31]} 53. Ke3 {[%emt 0:00:00]} Ne7 {[%emt 0:01:55]} 54. Be2 {[%emt 0:00:00]}
Ra6 {[%emt 0:00:22]} 55. Ra1 {[%emt 0:04:15]} R8a7 {[%emt 0:01:35]} 56. Kf4 {
[%emt 0:00:00]} Ra8 {[%emt 0:00:01]} 57. Rab1 {[%emt 0:09:49]} Rxa5 {[%emt 0:
00:00]} 58. Rb7+ {[%emt 0:00:00]} Kd8 {[%emt 0:00:00]} 59. Bb5 {[%emt 0:00:00]}
R5a7 {[%emt 0:00:59]} 60. Bd7 {[%emt 0:00:00]} c4 {[%emt 0:05:02]} 61. Be6 {
[%emt 0:00:00]} g5+ {[%emt 0:03:23]} 62. hxg6 {[%emt 0:00:00]} Nxg6+ {[%emt 0:
00:00]} 63. Kf5 {[%emt 0:00:00]} Ne5 {[%emt 0:00:00]} 64. Kxf6 {[%emt 0:00:00]}
Rxb7 {[%emt 0:02:52]} 65. Rxb7 {[%emt 0:00:00]} Ra3 {[%emt 0:07:23]} 66. Bf5 {
[%emt 0:03:06]} c3 {[%emt 0:01:58]} 67. Rh7 {[%emt 0:00:44]} Rb3 {[%emt 0:02:
33]} 68. Ra7 {[%emt 0:00:00]} Nd3 {[%emt 0:02:52]} 69. Rg7 {[%emt 0:24:35]} Ne5
{[%emt 0:00:08]} 70. Rg8+ {[%emt 0:00:23]} Kc7 {[%emt 0:00:00]} 71. Rc8+ {
[%emt 0:00:00]} Kb7 {[%emt 0:00:00]} 72. Ke7 {[%emt 0:00:00]} Nf3 {[%emt 0:03:
49]} 73. Kxd6 {[%emt 0:01:07]} Nd4 {[%emt 0:00:00]} 74. Rc4 {[%emt 0:00:07]} c2
{[%emt 0:01:06]} 75. e5 {[%emt 0:00:00]} Rb6+ {[%emt 0:01:27]} 76. Kd7 {
[%emt 0:00:00]} Rb5 {[%emt 0:00:00]} 77. Be4 {[%emt 0:00:00]} Ka7 {[%emt 0:01:
27]} 78. e6 {[%emt 0:00:17]} Rb7+ {[%emt 0:00:00]} 79. Kd8 {[%emt 0:00:56]}
Rb8+ {[%emt 0:00:04]} 80. Ke7 {[%emt 0:00:00]} Rb4 {[%emt 0:00:00]} 81. Rxc2 {
[%emt 0:02:04]} Nxc2 {[%emt 0:00:00]} 82. Bxc2 {[%emt 0:00:00]} Kb6 {[%emt 0:
00:00]} 83. Bf5 {[%emt 0:00:04]} Rb2 {[%emt 0:01:39]} 84. d6 {[%emt 0:00:00]}
Rd2 {[%emt 0:00:00]} 85. d7 {[%emt 0:00:00]} Kc7 {[%emt 0:00:00]} 86. Ke8 {
[%emt 0:00:00]} 1-0

[Event "28th North American Open"]
[Site "Las Vegas"]
[Date "2018.12.30"]
[Round "9"]
[White "Zhang, Chao"]
[Black "Karthik Venkataraman"]
[Result "0-1"]
[ECO "E00"]
[WhiteElo "2225"]
[BlackElo "2527"]
[PlyCount "172"]
[EventDate "2018.12.??"]
[EventType "swiss"]
[EventRounds "9"]
[EventCountry "USA"]
[TimeControl "6600+10"]
[WhiteClock "0:09:04"]
[BlackClock "0:07:08"]

1. d4 {[%emt 0:19:40]} Nf6 {[%emt 0:19:55]} 2. c4 {[%emt 0:00:00]} e6 {[%emt 0:
00:00]} 3. g3 {[%emt 0:00:00]} c5 {[%emt 0:00:00]} 4. d5 {[%emt 0:00:00]} exd5
{[%emt 0:00:00]} 5. cxd5 {[%emt 0:00:00]} d6 {[%emt 0:00:00]} 6. Nc3 {[%emt 0:
00:00]} g6 {[%emt 0:00:00]} 7. Bg2 {[%emt 0:00:00]} Bg7 {[%emt 0:00:00]} 8. Nf3
{[%emt 0:00:00]} O-O {[%emt 0:00:00]} 9. O-O {[%emt 0:00:00]} Re8 {[%emt 0:00:
00]} 10. Bf4 {[%emt 0:00:00]} h6 {[%emt 0:00:00]} 11. Nb5 {[%emt 0:11:48]} Bf8
{[%emt 0:00:00]} 12. a4 {[%emt 0:00:06]} Na6 {[%emt 0:00:00]} 13. Nd2 {[%emt 0:
02:50]} g5 {[%emt 0:01:58]} 14. Be3 {[%emt 0:00:23]} Bf5 {[%emt 0:02:41]} 15.
Nc4 {[%emt 0:02:23]} Nb4 {[%emt 0:00:08]} 16. Rc1 {[%emt 0:02:36]} Na2 {
[%emt 0:00:44]} 17. Ra1 {[%emt 0:00:02]} Nb4 {[%emt 0:00:00]} 18. Rc1 {[%emt 0:
00:00]} b6 {[%emt 0:00:00]} 19. Bd2 {[%emt 0:10:46]} Nbxd5 {[%emt 0:08:41]} 20.
Be1 {[%emt 0:01:53]} Be4 {[%emt 0:22:44]} 21. f3 {[%emt 0:02:40]} Bg6 {[%emt 0:
00:17]} 22. e4 {[%emt 0:00:52]} a6 {[%emt 0:00:00]} 23. Nbxd6 {[%emt 0:01:24]}
Bxd6 {[%emt 0:00:00]} 24. exd5 {[%emt 0:00:27]} b5 {[%emt 0:06:38]} 25. Nxd6 {
[%emt 0:07:27]} Qxd6 {[%emt 0:00:00]} 26. f4 {[%emt 0:00:11]} Rad8 {[%emt 0:08:
27]} 27. fxg5 {[%emt 0:16:17]} hxg5 {[%emt 0:00:00]} 28. axb5 {[%emt 0:00:15]}
axb5 {[%emt 0:00:00]} 29. Bd2 {[%emt 0:04:58]} Qe5 {[%emt 0:02:27]} 30. Ba5 {
[%emt 0:15:30]} Qe3+ {[%emt 0:03:20]} 31. Kh1 {[%emt 0:00:00]} Rxd5 {[%emt 0:
00:11]} 32. Qf3 {[%emt 0:07:34]} Qxf3 {[%emt 0:01:41]} 33. Rxf3 {[%emt 0:00:02]
} Ne4 {[%emt 0:04:13]} 34. Re3 {[%emt 0:00:25]} Nf2+ {[%emt 0:00:26]} 35. Kg1 {
[%emt 0:00:00]} Rxe3 {[%emt 0:00:00]} 36. Bxd5 {[%emt 0:00:00]} Nd3 {[%emt 0:
00:00]} 37. Rc2 {[%emt 0:02:04]} b4 {[%emt 0:06:39]} 38. Rd2 {[%emt 0:01:15]}
Re5 {[%emt 0:00:00]} 39. Bc4 {[%emt 0:01:07]} Re1+ {[%emt 0:01:27]} 40. Kg2 {
[%emt 0:00:00]} Be4+ {[%emt 0:00:00]} 41. Kh3 {[%emt 0:00:00]} Ne5 {[%emt 0:00:
00]} 42. Re2 {[%emt 0:00:00]} g4+ {[%emt 0:10:08]} 43. Kh4 {[%emt 0:00:00]}
Rxe2 {[%emt 0:00:27]} 44. Bxe2 {[%emt 0:00:00]} Bd3 {[%emt 0:00:00]} 45. Bxg4 {
[%emt 0:01:01]} Nc4 {[%emt 0:00:00]} 46. Bd8 {[%emt 0:00:00]} Nxb2 {[%emt 0:00:
00]} 47. Be7 {[%emt 0:00:00]} b3 {[%emt 0:00:00]} 48. Bxc5 {[%emt 0:00:00]} Nc4
{[%emt 0:00:00]} 49. Bd4 {[%emt 0:00:00]} b2 {[%emt 0:00:00]} 50. Bxb2 {
[%emt 0:00:00]} Nxb2 {[%emt 0:00:00]} 51. Kg5 {[%emt 0:00:00]} Kg7 {[%emt 0:00:
00]} 52. h4 {[%emt 0:00:00]} Bh7 {[%emt 0:00:00]} 53. Kf4 {[%emt 0:01:46]} Nd3+
{[%emt 0:00:00]} 54. Ke3 {[%emt 0:00:00]} Ne5 {[%emt 0:00:00]} 55. Bd1 {
[%emt 0:00:00]} Kf6 {[%emt 0:02:03]} 56. Kf4 {[%emt 0:00:07]} Nd3+ {[%emt 0:00:
00]} 57. Kf3 {[%emt 0:00:00]} Bf5 {[%emt 0:00:12]} 58. Ke3 {[%emt 0:00:00]} Ne5
{[%emt 0:00:00]} 59. Kf4 {[%emt 0:00:00]} Ng6+ {[%emt 0:00:00]} 60. Kf3 {
[%emt 0:00:00]} Be6 {[%emt 0:00:00]} 61. Ke4 {[%emt 0:00:28]} Bc8 {[%emt 0:00:
00]} 62. Kf3 {[%emt 0:00:30]} Bb7+ {[%emt 0:01:53]} 63. Kg4 {[%emt 0:00:00]}
Be4 {[%emt 0:00:00]} 64. Bb3 {[%emt 0:01:02]} Bd3 {[%emt 0:00:34]} 65. Bd1 {
[%emt 0:00:27]} Ne7 {[%emt 0:01:16]} 66. Kf4 {[%emt 0:00:00]} Nd5+ {[%emt 0:00:
15]} 67. Kf3 {[%emt 0:00:00]} Be4+ {[%emt 0:02:19]} 68. Kf2 {[%emt 0:00:06]}
Ke5 {[%emt 0:00:00]} 69. Bh5 {[%emt 0:00:30]} f5 {[%emt 0:00:20]} 70. Bd1 {
[%emt 0:00:15]} Nf6 {[%emt 0:00:00]} 71. Bb3 {[%emt 0:00:00]} Bc6 {[%emt 0:00:
00]} 72. Bc2 {[%emt 0:00:12]} Bd5 {[%emt 0:00:00]} 73. Ke3 {[%emt 0:00:08]} Be4
{[%emt 0:02:12]} 74. Bb3 {[%emt 0:00:06]} Bh1 {[%emt 0:01:24]} 75. Bc2 {
[%emt 0:00:00]} Ne4 {[%emt 0:02:34]} 76. Bxe4 {[%emt 0:00:00]} Bxe4 {[%emt 0:
00:53]} 77. h5 {[%emt 0:00:00]} Bb7 {[%emt 0:00:39]} 78. h6 {[%emt 0:00:00]}
Kf6 {[%emt 0:00:00]} 79. Kf4 {[%emt 0:00:00]} Bc8 {[%emt 0:00:00]} 80. h7 {
[%emt 0:00:00]} Kg7 {[%emt 0:00:00]} 81. Kg5 {[%emt 0:00:00]} Kxh7 {[%emt 0:00:
00]} 82. Kh5 {[%emt 0:00:00]} Kg7 {[%emt 0:00:00]} 83. Kg5 {[%emt 0:00:00]} Bd7
{[%emt 0:00:00]} 84. Kf4 {[%emt 0:00:00]} Kf6 {[%emt 0:00:00]} 85. Kf3 {
[%emt 0:00:00]} Kg5 {[%emt 0:00:00]} 86. Ke3 {[%emt 0:00:00]} Kg4 {[%emt 0:00:
00]} 0-1

[Event "28th North American Open"]
[Site "Las Vegas"]
[Date "2018.12.30"]
[Round "9"]
[White "Becerra Rivero, Julio"]
[Black "He, Anthony"]
[Result "1-0"]
[ECO "B31"]
[WhiteElo "2520"]
[BlackElo "2251"]
[PlyCount "89"]
[EventDate "2018.12.??"]
[EventType "swiss"]
[EventRounds "9"]
[EventCountry "USA"]
[TimeControl "6600+10"]
[WhiteClock "0:14:14"]
[BlackClock "0:02:51"]

1. e4 {[%emt 0:19:40]} c5 {[%emt 0:20:24]} 2. Nf3 {[%emt 0:00:00]} Nc6 {
[%emt 0:00:00]} 3. Bb5 {[%emt 0:00:00]} g6 {[%emt 0:00:00]} 4. O-O {[%emt 0:00:
00]} Bg7 {[%emt 0:00:00]} 5. Re1 {[%emt 0:00:00]} e5 {[%emt 0:00:00]} 6. Bxc6 {
[%emt 0:00:00]} dxc6 {[%emt 0:00:00]} 7. d3 {[%emt 0:00:00]} Qe7 {[%emt 0:01:
38]} 8. a3 {[%emt 0:00:00]} a5 {[%emt 0:13:34]} 9. a4 {[%emt 0:00:13]} Nf6 {
[%emt 0:04:59]} 10. Na3 {[%emt 0:00:11]} Nd7 {[%emt 0:02:30]} 11. Nc4 {[%emt 0:
00:30]} O-O {[%emt 0:01:32]} 12. h3 {[%emt 0:00:17]} b6 {[%emt 0:02:53]} 13.
Bg5 {[%emt 0:02:24]} f6 {[%emt 0:19:18]} 14. Bd2 {[%emt 0:00:00]} Ba6 {[%emt 0:
00:00]} 15. b3 {[%emt 0:00:00]} Rfd8 {[%emt 0:07:17]} 16. Nh2 {[%emt 0:00:00]}
Qf7 {[%emt 0:18:31]} 17. Rb1 {[%emt 0:07:21]} Bxc4 {[%emt 0:08:15]} 18. bxc4 {
[%emt 0:00:00]} f5 {[%emt 0:00:00]} 19. exf5 {[%emt 0:03:51]} gxf5 {[%emt 0:00:
00]} 20. Nf1 {[%emt 0:00:34]} Qg6 {[%emt 0:05:44]} 21. Re3 {[%emt 0:03:00]} Kh8
{[%emt 0:06:33]} 22. Rg3 {[%emt 0:00:38]} Qf7 {[%emt 0:00:00]} 23. Qf3 {
[%emt 0:01:22]} Rac8 {[%emt 0:00:00]} 24. Rg5 {[%emt 0:09:56]} f4 {[%emt 0:00:
00]} 25. Bc3 {[%emt 0:01:15]} h6 {[%emt 0:00:00]} 26. Rg4 {[%emt 0:01:20]} Bf6
{[%emt 0:00:00]} 27. Qe4 {[%emt 0:00:15]} Bg7 {[%emt 0:00:00]} 28. Rg6 {
[%emt 0:06:09]} Rf8 {[%emt 0:00:00]} 29. Nd2 {[%emt 0:06:41]} Kg8 {[%emt 0:00:
27]} 30. Nf3 {[%emt 0:06:48]} Nf6 {[%emt 0:00:08]} 31. Qf5 {[%emt 0:00:00]} Nd7
{[%emt 0:00:00]} 32. Qh5 {[%emt 0:03:45]} Rfe8 {[%emt 0:01:03]} 33. Qxh6 {
[%emt 0:14:04]} Kf8 {[%emt 0:00:04]} 34. Qg5 {[%emt 0:02:24]} Bf6 {[%emt 0:00:
22]} 35. Qh5 {[%emt 0:05:16]} Re6 {[%emt 0:00:11]} 36. Ng5 {[%emt 0:02:27]}
Bxg5 {[%emt 0:00:02]} 37. Qh8+ {[%emt 0:00:00]} Ke7 {[%emt 0:00:00]} 38. Rxe6+
{[%emt 0:00:00]} Qxe6 {[%emt 0:00:00]} 39. Qxc8 {[%emt 0:00:00]} f3 {[%emt 0:
00:00]} 40. Qh8 {[%emt 0:00:00]} Kd6 {[%emt 0:00:00]} 41. Qh5 {[%emt 0:00:00]}
Bf4 {[%emt 0:00:00]} 42. Qxf3 {[%emt 0:00:00]} Kc7 {[%emt 0:00:00]} 43. Re1 {
[%emt 0:00:35]} Qh6 {[%emt 0:00:00]} 44. Re2 {[%emt 0:00:51]} Kd6 {[%emt 0:00:
00]} 45. Qe4 {[%emt 0:01:29]} 1-0

[Event "28th North American Open"]
[Site "Las Vegas"]
[Date "2018.12.30"]
[Round "9"]
[White "Coleman, Teddy"]
[Black "Calugar, Arthur"]
[Result "0-1"]
[ECO "D10"]
[WhiteElo "2361"]
[BlackElo "2208"]
[PlyCount "108"]
[EventDate "2018.12.??"]
[EventType "swiss"]
[EventRounds "9"]
[EventCountry "USA"]
[TimeControl "6600+10"]
[WhiteClock "0:03:01"]
[BlackClock "0:02:29"]

1. d4 {[%emt 0:19:40]} d5 {[%emt 0:20:09]} 2. c4 {[%emt 0:00:00]} c6 {[%emt 0:
00:00]} 3. Nc3 {[%emt 0:00:00]} e5 {[%emt 0:00:00]} 4. dxe5 {[%emt 0:04:40]} d4
{[%emt 0:00:00]} 5. Ne4 {[%emt 0:00:00]} Qa5+ {[%emt 0:00:00]} 6. Bd2 {[%emt 0:
04:03]} Qxe5 {[%emt 0:00:00]} 7. Ng3 {[%emt 0:00:00]} c5 {[%emt 0:00:00]} 8.
Nf3 {[%emt 0:00:00]} Qc7 {[%emt 0:00:00]} 9. e3 {[%emt 0:02:58]} dxe3 {[%emt 0:
01:04]} 10. Bxe3 {[%emt 0:00:00]} Nf6 {[%emt 0:05:09]} 11. Bd3 {[%emt 0:04:25]}
Be7 {[%emt 0:17:47]} 12. Qd2 {[%emt 0:17:23]} Nc6 {[%emt 0:05:57]} 13. Bf4 {
[%emt 0:04:08]} Qb6 {[%emt 0:11:34]} 14. O-O {[%emt 0:03:02]} O-O {[%emt 0:05:
20]} 15. Ne5 {[%emt 0:06:31]} Be6 {[%emt 0:15:15]} 16. Nxc6 {[%emt 0:10:03]}
Qxc6 {[%emt 0:00:14]} 17. Qc2 {[%emt 0:00:00]} Rad8 {[%emt 0:02:47]} 18. Be5 {
[%emt 0:08:25]} h6 {[%emt 0:04:48]} 19. Nf5 {[%emt 0:02:02]} Bxf5 {[%emt 0:00:
56]} 20. Bxf5 {[%emt 0:00:00]} Nd7 {[%emt 0:02:16]} 21. Bf4 {[%emt 0:12:07]}
Rfe8 {[%emt 0:04:25]} 22. Rad1 {[%emt 0:01:57]} Nf8 {[%emt 0:01:29]} 23. Be4 {
[%emt 0:05:03]} Qb6 {[%emt 0:01:31]} 24. Bd5 {[%emt 0:04:02]} Bf6 {[%emt 0:03:
25]} 25. Be3 {[%emt 0:00:55]} Ne6 {[%emt 0:01:22]} 26. b4 {[%emt 0:01:28]} Bd4
{[%emt 0:02:08]} 27. bxc5 {[%emt 0:00:00]} Qxc5 {[%emt 0:00:11]} 28. Qf5 {
[%emt 0:00:35]} Bxe3 {[%emt 0:04:49]} 29. fxe3 {[%emt 0:00:00]} Qxe3+ {[%emt 0:
00:00]} 30. Kh1 {[%emt 0:00:00]} Rd7 {[%emt 0:00:00]} 31. Rd3 {[%emt 0:00:36]}
Qe2 {[%emt 0:02:06]} 32. Rdf3 {[%emt 0:00:26]} Rde7 {[%emt 0:00:00]} 33. R3f2 {
[%emt 0:00:00]} Qe3 {[%emt 0:00:00]} 34. Qh5 {[%emt 0:00:00]} Nf4 {[%emt 0:00:
32]} 35. Qf3 {[%emt 0:00:00]} Nxd5 {[%emt 0:00:00]} 36. cxd5 {[%emt 0:00:00]}
Qxf3 {[%emt 0:00:00]} 37. Rxf3 {[%emt 0:00:00]} f6 {[%emt 0:00:00]} 38. Rd3 {
[%emt 0:00:00]} Re3 {[%emt 0:00:00]} 39. Rxe3 {[%emt 0:00:00]} Rxe3 {[%emt 0:
00:00]} 40. Rd1 {[%emt 0:00:00]} Kf7 {[%emt 0:00:00]} 41. Kg1 {[%emt 0:00:00]}
Ke7 {[%emt 0:00:00]} 42. a4 {[%emt 0:00:00]} Ra3 {[%emt 0:00:00]} 43. d6+ {
[%emt 0:01:20]} Kd7 {[%emt 0:00:00]} 44. Rd4 {[%emt 0:00:00]} a5 {[%emt 0:00:
00]} 45. h4 {[%emt 0:00:02]} Rb3 {[%emt 0:00:00]} 46. h5 {[%emt 0:00:44]} Rb4 {
[%emt 0:00:39]} 47. Rd3 {[%emt 0:00:00]} Rxa4 {[%emt 0:00:34]} 48. Rg3 {
[%emt 0:00:00]} Kxd6 {[%emt 0:00:25]} 49. Rxg7 {[%emt 0:00:00]} b5 {[%emt 0:00:
01]} 50. Rg6 {[%emt 0:00:00]} Ke5 {[%emt 0:00:00]} 51. Rxh6 {[%emt 0:00:00]} b4
{[%emt 0:00:00]} 52. Rh8 {[%emt 0:00:00]} b3 {[%emt 0:00:00]} 53. h6 {[%emt 0:
00:00]} b2 {[%emt 0:00:00]} 54. Re8+ {[%emt 0:00:00]} Kf4 {[%emt 0:00:00]} 0-1

[Event "28th North American Open"]
[Site "Las Vegas"]
[Date "2018.12.30"]
[Round "9"]
[White "Ginsburg, Mark"]
[Black "Yanayt, Eugene"]
[Result "1/2-1/2"]
[ECO "E97"]
[WhiteElo "2336"]
[BlackElo "2122"]
[PlyCount "129"]
[EventDate "2018.12.??"]
[EventType "swiss"]
[EventRounds "9"]
[EventCountry "USA"]
[TimeControl "6600+10"]
[WhiteClock "0:08:16"]
[BlackClock "0:07:25"]

1. Nf3 {[%emt 0:19:40]} Nf6 {[%emt 0:20:04]} 2. c4 {[%emt 0:00:00]} g6 {
[%emt 0:00:10]} 3. Nc3 {[%emt 0:00:00]} Bg7 {[%emt 0:00:00]} 4. e4 {[%emt 0:00:
00]} d6 {[%emt 0:00:00]} 5. d4 {[%emt 0:00:00]} O-O {[%emt 0:00:00]} 6. Be2 {
[%emt 0:00:00]} e5 {[%emt 0:00:00]} 7. O-O {[%emt 0:00:00]} Nc6 {[%emt 0:00:00]
} 8. d5 {[%emt 0:00:00]} Ne7 {[%emt 0:00:00]} 9. Bg5 {[%emt 0:00:00]} h6 {
[%emt 0:03:23]} 10. Bxf6 {[%emt 0:00:00]} Bxf6 {[%emt 0:00:00]} 11. b4 {
[%emt 0:00:00]} Kh7 {[%emt 0:17:21]} 12. c5 {[%emt 0:00:56]} Bd7 {[%emt 0:04:
03]} 13. Nd2 {[%emt 0:02:20]} Ng8 {[%emt 0:02:11]} 14. Bg4 {[%emt 0:08:26]} Be7
{[%emt 0:05:53]} 15. Bxd7 {[%emt 0:01:16]} Qxd7 {[%emt 0:00:00]} 16. Nc4 {
[%emt 0:03:44]} dxc5 {[%emt 0:17:16]} 17. Nxe5 {[%emt 0:22:08]} Qe8 {[%emt 0:
03:24]} 18. bxc5 {[%emt 0:03:08]} Bxc5 {[%emt 0:04:17]} 19. Nf3 {[%emt 0:00:00]
} Rd8 {[%emt 0:21:22]} 20. Qb3 {[%emt 0:04:04]} b6 {[%emt 0:02:56]} 21. Rad1 {
[%emt 0:06:48]} c6 {[%emt 0:03:05]} 22. dxc6 {[%emt 0:11:01]} Rxd1 {[%emt 0:00:
07]} 23. Rxd1 {[%emt 0:00:00]} Qxc6 {[%emt 0:00:00]} 24. Ne5 {[%emt 0:05:22]}
Qf6 {[%emt 0:04:11]} 25. Nd3 {[%emt 0:00:00]} Bd4 {[%emt 0:02:21]} 26. Nd5 {
[%emt 0:06:38]} Qe6 {[%emt 0:00:00]} 27. Qb4 {[%emt 0:04:17]} Bg7 {[%emt 0:01:
31]} 28. a4 {[%emt 0:00:44]} f5 {[%emt 0:00:02]} 29. f3 {[%emt 0:03:23]} fxe4 {
[%emt 0:00:49]} 30. fxe4 {[%emt 0:00:35]} Qg4 {[%emt 0:00:00]} 31. Re1 {
[%emt 0:02:29]} Re8 {[%emt 0:00:00]} 32. e5 {[%emt 0:05:04]} Qf5 {[%emt 0:00:
00]} 33. Qb5 {[%emt 0:02:19]} Rd8 {[%emt 0:00:21]} 34. Re3 {[%emt 0:00:00]} a6
{[%emt 0:00:31]} 35. Qb3 {[%emt 0:00:00]} Qd7 {[%emt 0:00:00]} 36. N3f4 {
[%emt 0:00:10]} Ne7 {[%emt 0:00:00]} 37. Rd3 {[%emt 0:00:52]} Nxd5 {[%emt 0:00:
00]} 38. Rxd5 {[%emt 0:00:00]} Qf7 {[%emt 0:00:00]} 39. Qd1 {[%emt 0:00:00]}
Rxd5 {[%emt 0:00:00]} 40. Nxd5 {[%emt 0:00:00]} Bxe5 {[%emt 0:00:00]} 41. Nxb6
{[%emt 0:00:00]} Qf4 {[%emt 0:00:00]} 42. Qd7+ {[%emt 0:00:00]} Bg7 {[%emt 0:
00:00]} 43. Nd5 {[%emt 0:00:00]} Qd4+ {[%emt 0:00:00]} 44. Kf1 {[%emt 0:00:00]}
h5 {[%emt 0:00:00]} 45. Qf7 {[%emt 0:00:00]} Qd3+ {[%emt 0:00:00]} 46. Kf2 {
[%emt 0:00:00]} Qc2+ {[%emt 0:00:32]} 47. Kf3 {[%emt 0:00:00]} Qc6 {[%emt 0:01:
01]} 48. h4 {[%emt 0:01:34]} Kh8 {[%emt 0:00:00]} 49. g3 {[%emt 0:00:00]} Qxa4
{[%emt 0:00:00]} 50. Nf4 {[%emt 0:00:00]} Qc6+ {[%emt 0:00:00]} 51. Ke2 {
[%emt 0:00:00]} Qe4+ {[%emt 0:00:00]} 52. Kd1 {[%emt 0:00:00]} Kh7 {[%emt 0:00:
00]} 53. Ne6 {[%emt 0:00:00]} Qd3+ {[%emt 0:00:00]} 54. Kc1 {[%emt 0:00:00]}
Qc3+ {[%emt 0:00:00]} 55. Kd1 {[%emt 0:00:00]} Qf6 {[%emt 0:00:00]} 56. Ng5+ {
[%emt 0:00:00]} Kh6 {[%emt 0:00:00]} 57. Qg8 {[%emt 0:00:00]} Qf1+ {[%emt 0:00:
00]} 58. Kd2 {[%emt 0:00:00]} Qf2+ {[%emt 0:00:00]} 59. Kd1 {[%emt 0:00:00]}
Qd4+ {[%emt 0:00:00]} 60. Ke2 {[%emt 0:00:00]} Qb2+ {[%emt 0:00:00]} 61. Kf1 {
[%emt 0:00:00]} Qc1+ {[%emt 0:00:00]} 62. Kg2 {[%emt 0:00:00]} Qc2+ {[%emt 0:
00:00]} 63. Kh3 {[%emt 0:00:00]} Qf5+ {[%emt 0:00:00]} 64. Kg2 {[%emt 0:00:00]}
Qc2+ {[%emt 0:00:00]} 65. Kh3 {[%emt 0:00:00]} 1/2-1/2